Cogmind - Beta 10.2 @@@ ROGUE MODE // 2021.05.22 @ 21:31:40 Player: Zoe Result: Destroyed by G-34 Mercenary with Small Laser Performance ------------- Evolutions (1) 500 Regions Visited (2) 400 Robots Destroyed (17) 85 Value Destroyed (542) 542 Prototype IDs (0) 0 Alien Tech Used (0) 0 Bonus (0) 0 TOTAL SCORE: 1527 Bonus ------- None Cogmind --------- Core Integrity 0/400 Matter 280/300 Energy 89/125 System Corruption 0% Temperature Cool (6) Movement Core (150) Ox2 Location -9/Materials Parts ------- > --- POWER (1) -------- Light Ion Engine > --- PROPULSION (4) --- (None) > --- UTILITY (2) ------ Small Storage Unit > --- WEAPON (2) ------- Hammer > --- INVENTORY (6) ---- Heat Sink Improved Sensor Array Peak State ------------ > --- POWER ------------ Improved Ion Engine > --- PROPULSION ------- Aluminum Leg Aluminum Leg Aluminum Leg Aluminum Leg > --- UTILITY ---------- Improved Heat Sink Small Storage Unit > --- WEAPON ----------- Small Laser Katana > --- INVENTORY -------- Ion Engine Light Ion Engine Aluminum Leg Aluminum Leg Heat Sink Improved Sensor Array [Rating: 14] Favorites ----------- Power Ion Engine Engine Ion Engine Propulsion Aluminum Leg Leg Aluminum Leg Utility Small Storage Unit Device Heat Sink Storage Small Storage Unit Processor Visual Processing Unit Weapon Medium Laser Energy Gun Medium Laser Ballistic Gun Assault Rifle Impact Weapon Hammer Slashing Weapon Katana Build | -11 -10 -9 ------- Run | Scr Mat Mat Slots Evolved 2 | . . 2 Power . | . . . Propulsion 2 | . . 2 Utility . | . . . Weapon . | . . . Parts Attached 34 | 6 9 19 Power 8 | 1 2 5 Engine 8 | 1 2 5 Core . | . . . Reactor . | . . . Propulsion 11 | 2 1 8 Treads . | . . . Leg 11 | 2 1 8 Wheel . | . . . Hover . | . . . Flight . | . . . Utility 5 | 1 3 1 Device 3 | . 2 1 Storage 1 | 1 . . Processor 1 | . 1 . Hackware . | . . . Protection . | . . . Artifact . | . . . Weapon 10 | 2 3 5 Energy Gun 6 | . 3 3 Energy Cannon . | . . . Ballistic Gun 2 | 2 . . Ballistic Cannon . | . . . Launcher . | . . . Special Weapon . | . . . Impact Weapon 1 | . . 1 Slashing Weapon 1 | . . 1 Piercing Weapon . | . . . Special Melee Weapon . | . . . Unidentified Prototypes . | . . . Parts Lost 19 | . 1 18 Power 4 | . 1 3 Propulsion 8 | . . 8 Utility 1 | . . 1 Weapon 6 | . . 6 Highest Loss Streak 15 | . 1 15 Average Slot Usage (%) 89 | . 90 87 Engine 12 | . 14 10 Leg 31 | . 28 35 Device 6 | . 3 9 Storage 12 | . 14 11 Processor 1 | . 1 . Energy Gun 12 | . 9 16 Ballistic Gun 10 | . 18 . Slashing Weapon 1 | . . 2 Naked Turns . | . . . Heaviest Build 16 | 12 14 16 Greatest Support 40 | 20 20 40 Greatest Overweight (x) 2 | 1 . 2 Average Overweight (x) . | . . . Largest Inventory Capacity 6 | 6 6 6 Average Capacity 5 | 4 6 6 Most Carried 6 | 2 6 6 Average Carried 3 | 1 3 4 Final Capacity 6 | 6 6 6 Final Carried 5 | 2 5 2 Class Distribution -------------------- 67% | Mutant 32% | Scavenger-Mutant Dominant Class ---------------- Mutant | -10/Materials Scavenger-Mutant | -9/Materials Resources | -11 -10 -9 ----------- Run | Scr Mat Mat Matter Collected 575 | 235 183 157 Remotely . | . . . Salvage Created 665 | . 302 363 Parts 41 | . 22 19 Haulers Intercepted . | . . . Recyclers Shooed 2 | . 2 . Parts Field Recycled . | . . . Retrieved Matter . | . . . Parts Self-Destructed . | . . . Prevented . | . . . Kills | -11 -10 -9 ------- Run | Scr Mat Mat Combat Hostiles Destroyed 16 | . 8 8 Melee 4 | . . 4 Guns 12 | . 8 4 Classes Destroyed 5 | . 3 2 Watcher 1 | . 1 . Swarmer 3 | . 3 . Grunt 11 | . 5 6 Brawler 1 | . . 1 Duelist 1 | . . 1 Best Kill Streak 4 | . 4 4 Combat Bots Only 4 | . 4 4 Max Kills in Single Turn 1 | . 1 1 Gunslinging . | . . . Exploded . | . . . Melee 1 | . . 1 Uniques/NPCs Destroyed . | . . . Combat | -11 -10 -9 -------- Run | Scr Mat Mat Damage Taken 1987 | . 391 1596 Core 474 | . 69 405 Absorbed by Shields . | . . . Core Remaining (%) 86 | 100 72 . Volleys Fired 67 | . 40 27 Largest 2 | . 2 2 Hottest 100 | . 100 100 Shots Fired 126 | . 80 46 Gun 126 | . 80 46 Cannon . | . . . Launcher . | . . . Special . | . . . Kinetic 70 | . 70 . Thermal 56 | . 10 46 Explosive . | . . . Electromagnetic . | . . . Robot Hit Streak 10 | . 10 5 Robot Miss Streak 3 | . 3 3 Penetration Max . | . . . Secondary Targets 1 | . . 1 Max Gunslinging Chain 1 | . . 1 Shots Hit Robots 85 | . 46 39 Core Hits 32 | . 18 14 Critical Hits 1 | . . 1 Critical Kills . | . . . Critical Parts Destroyed 1 | . . 1 Melee Attacks 18 | . . 18 Impact 4 | . . 4 Slashing 14 | . . 14 Piercing . | . . . Sneak Attacks . | . . . Combat Hostiles . | . . . Follow-up Attacks . | . . . Damage Inflicted 1126 | . 462 664 Guns 801 | . 462 339 Cannons . | . . . Explosions . | . . . Melee 325 | . . 325 Ramming . | . . . Kinetic 426 | . 426 . Thermal 375 | . 36 339 Explosive . | . . . Electromagnetic . | . . . Impact 77 | . . 77 Slashing 248 | . . 248 Piercing . | . . . Highest Corruption . | . . . Average Corruption . | . . . Corruption Purged . | . . . Overload Shots . | . . . Overflow Damage 1 | . . 1 Projectiles . | . . . Explosions . | . . . Melee 1 | . . 1 Knockbacks 1 | . . 1 Impact 1 | . . 1 Kinetic . | . . . Secondary . | . . . Self-Inflicted Damage . | . . . Shots . | . . . Rammed . | . . . Targets Rammed . | . . . Kicked . | . . . Crushed . | . . . Highest Temperature 69 | . 18 69 Average Temperature 24 | . 8 37 Received Heat Transfer 963 | . 180 783 Siege Activations . | . . . Robots Corrupted . | . . . Combat Hostiles . | . . . Parts Fried . | . . . Impact Corruptions . | . . . Robots Melted . | . . . Combat Hostiles . | . . . Parts Melted 1 | . . 1 Heat Transferred 1098 | . 99 999 Parts Sabotaged . | . . . Parts Stolen . | . . . Parts Stripped . | . . . Power Chain Reactions . | . . . Missiles Intercepted . | . . . Alert | -11 -10 -9 ------- Run | Scr Mat Mat Peak Influence 252 | . 252 201 Initial 51 | . . 51 Average 112 | . 141 105 Maximum Alert Level 1 | . 1 1 Low Security (%) 84 | 100 69 98 Level 1 15 | . 30 1 Level 2 . | . . . Level 3 . | . . . Level 4 . | . . . Level 5 . | . . . High Security . | . . . Max Security . | . . . Squads Dispatched 4 | . 1 3 Investigation . | . . . Extermination . | . . . Reinforcement 4 | . 1 3 Assault . | . . . Garrison . | . . . Intercept . | . . . Construction Impeded 1 | . . 1 Haulers Reinforced . | . . . Stealth | -11 -10 -9 --------- Run | Scr Mat Mat Distress Signals 2 | . 1 1 Communications Jammed . | . . . Distress Signals . | . . . Times Spotted 32 | . 13 19 Peak Tracking Total 8 | . 7 8 Tactical Retreats 1 | . 1 . Traps | -11 -10 -9 ------- Run | Scr Mat Mat Traps Triggered 1 | . 1 . Indirectly . | . . . Trap Hack Attempts . | . . . Triggered . | . . . Disarmed . | . . . Reprogrammed . | . . . Reused . | . . . Traps Extracted . | . . . Installed . | . . . Triggered . | . . . Machines | -11 -10 -9 ---------- Run | Scr Mat Mat Machines Disabled . | . . . Max in Single Turn . | . . . Machines Sabotaged . | . . . Garrisons Compromised . | . . . Overloaded Fab Kills . | . . . Fab Network Shutdowns . | . . . Hacking | -11 -10 -9 --------- Run | Scr Mat Mat Machines Accessed 2 | . 1 1 Terminals 2 | . 1 1 Fabricators . | . . . Repair Stations . | . . . Recycling Units . | . . . Scanalyzers . | . . . Garrison Access . | . . . Total Hacks 3 | . 2 1 Successful 1 | . 1 . Failed 2 | . 1 1 Catastrophic . | . . . Database Lockouts . | . . . Manual . | . . . Terminals 3 | . 2 1 Fabricators . | . . . Repair Stations . | . . . Recycling Units . | . . . Scanalyzers . | . . . Garrison Access . | . . . Terminal Hacks 1 | . 1 . Unreport Threat 1 | . 1 . Fabricator Hacks . | . . . Repair Station Hacks . | . . . Recycling Unit Hacks . | . . . Scanalyzer . | . . . Garrison Access Hacks . | . . . Unauthorized Hacks . | . . . Terminals . | . . . Fabricators . | . . . Repair Stations . | . . . Recycling Units . | . . . Scanalyzers . | . . . Garrison Access . | . . . Data Cores Recovered . | . . . Used . | . . . Hacking Detections 2 | . 1 1 Full Trace Events . | . . . Feedback Events . | . . . Feedback Blocked . | . . . Robot Schematics Acquired . | . . . Robots Built . | . . . Matter . | . . . Time . | . . . Total Robot Build Rating . | . . . Part Schematics Acquired . | . . . Parts Built . | . . . Matter . | . . . Time . | . . . Total Part Build Rating . | . . . Parts Repaired . | . . . Time . | . . . Parts Recycled . | . . . Recycled Matter . | . . . Retrieved Matter . | . . . Retrieved Components . | . . . Parts Scanalyzed . | . . . Part Schematics Acquired . | . . . Parts Damaged . | . . . Bothacking | -11 -10 -9 ------------ Run | Scr Mat Mat Used RIF Installer . | . . . Robots Hacked . | . . . Non-combat . | . . . Combat . | . . . Robot Hacks Applied . | . . . Relay Couplers Released . | . . . Robots Rewired . | . . . Allies Hacked . | . . . Hacks Repelled . | . . . Allies | -11 -10 -9 -------- Run | Scr Mat Mat Total Allies . | . . . Largest Group . | . . . Highest-Rated Group . | . . . Highest-Rated Ally . | . . . Total Orders . | . . . Ally Attacks . | . . . Total Damage . | . . . Kills . | . . . Allies Corrupted . | . . . Allies Melted . | . . . Intel | -11 -10 -9 ------- Run | Scr Mat Mat Robot Analysis Total . | . . . Derelict Logs Recovered . | . . . Drone Launches . | . . . Drone Recoveries . | . . . Exploration | -11 -10 -9 ------------- Run | Scr Mat Mat Turns Passed 717 | 74 355 288 Spaces Moved 348 | 60 170 118 Core 14 | 13 . 1 Treads . | . . . Legs 334 | 47 170 117 Wheels . | . . . Hover . | . . . Flight . | . . . Fastest Speed 50 | 50 120 120 Average Speed 118 | 106 120 121 Slowest Speed 150 | 120 120 150 Overloaded Moves . | . . . Propulsion Burnouts . | . . . Robots Hopped . | . . . Cave-ins Triggered . | . . . Exploration Rate (%) 16 | 3 31 14 Regions Visited 2 Branch Regions . Pre-discovered Areas . | . . . Known Exits Taken . | . . . Unknown Exits Taken 2 | 1 1 . Scrap Searched . | . . . Spaces Dug . | . . . Terrain Destroyed . | . . . Melee . | . . . Projectile . | . . . AOE . | . . . Terrain Rammed . | . . . Walls Destroyed . | . . . Machines Disabled . | . . . Actions | -11 -10 -9 --------- Run | Scr Mat Mat Total 500 | 67 247 186 Wait 23 | . 20 3 Move 346 | 59 169 118 Hop . | . . . Pick Up 5 | 2 3 . Fast Attach 18 | 6 5 7 Attach 9 | . 2 7 Detach 3 | . 3 . Swap 7 | . 2 5 Drop 4 | . 3 1 Fire 67 | . 40 27 Melee 18 | . . 18 Ram . | . . . Kick . | . . . Crush . | . . . Escape Stasis . | . . . Rewire . | . . . Trap . | . . . Miscellaneous . | . . . Route ------- -11/Scrapyard -10/Materials -9/Materials History --------- Turn | Location | Event 5 | -11/Scrapyard | Discovered new exit (range 16) 75 | -11/Scrapyard | Entered Materials 422 | -10/Materials | Discovered new exit (range 5) 430 | -10/Materials | Entered another Materials area 430 | -9/Materials | Evolved 2 slots: Propulsion x2 526 | -9/Materials | Lost 3 parts (1n2w) 690 | -9/Materials | Core integrity fell below 50% 711 | -9/Materials | Core integrity fell below 20% 718 | -9/Materials | Destroyed by G-34 Mercenary with Small Laser Last Messages --------------- 00694_ R-06 Scavenger collects Rnf. Ion Engine. 00697_ Aluminum Leg destroyed. 00697_ R-06 Scavenger collects Lgt. Treads. 00698_ Acquired Aluminum Leg. 00700_ Acquired Ion Engine. 00702_ U-05 Engineer lays Concrete. 00702_ Katana destroyed. 00705_ G-34 Mercenary destroyed. 00705_ R-06 Scavenger collects Ion Engine. 00707_ G-34 Mercenary knocked back. 00708_ R-06 Scavenger collects Heat Sink. 00711_ Ion Engine destroyed. 00712_ Aluminum Leg destroyed. 00713_ G-34 Mercenary heat spikes uncontrollably. 00713_ G-34 Mercenary overheating. 00716_ G-34 Mercenary heat damages Ion Engine. 00716_ Aluminum Leg destroyed. 00716_ G-34 Mercenary overheating. 00716_ K-01 Serf collects debris. 00717_ G-34 Mercenary overheating. Map ----- +----------------------------------------------------+ | ?????????????????????????????????????????????????? | | ?????????????????????????????????????????????????? | | ?????????????????????????????????????????????????? | | ?????????????????????????????????????????????????? | | ?????????????????????????????????????????????????? | | ?????????????????????????????????????????????????? | | ?????????????????????????????????????????????????? | | ?????????????????????????????????????????????????? | | ?????????????????????????????????????????????????? | | ?????????????????????????????????????????????##### | | ?????????????????????????????????????????????# """ | | ?????????????????????????????????????????????# "R" | | ?????????????????????????????????????????????# "*" | | ?????????????????????????????????????????????# | | ?????????????????????????????????????????????# | | ?????????????????????????????################# | | ?????????????????????????????# # ###+# | | ?????????????????????????????# # T | | ?????????????????????????????# # "" | | ?????????????????????????????# """ # | | ?????????????????????????????# """ # ###+# | | ?????????????????????????????# "T" """ ## ## | | ?????????????????????????????# """ ## ## | | ?????????????????????#######?# ## ##""" | | ?????????????????????# ##########/### ##""" | | ?????????????????????# g@ k ##""" | | ?????????????????????# g u ## | | ?????????????????????# %%gu % ###### | | ?????????????????????#g g ##########+#######????? | | ?????????????????????## %##??????? ?????????? | | ??????????????????????# #???????# ???????? | | ??????????????????????#r #???????# ?????? | | ??????????????????????# u#???????# #????? | | ??????????????????????#^ #???????# #????? | | ?????????????????????? ???????# #????? | | ????????????????????? ???????# #????? | | ???????????????????? ^ ???????# #????? | | ????????????????????#+#####???????###########????? | | ???????????????????? ???????????????????????????? | | ???????????????????# [???????????????????????????? | | ???????????????????# ????????????????????????????? | | ???????????????????#?????????????????????????????? | | ?????????????????????????????????????????????????? | | ?????????????????????????????????????????????????? | | ?????????????????????????????????????????????????? | | ?????????????????????????????????????????????????? | | ?????????????????????????????????????????????????? | | ?????????????????????????????????????????????????? | | ?????????????????????????????????????????????????? | | ?????????????????????????????????????????????????? | +----------------------------------------------------+ Best States ------------- Heat Dissipation 42 Energy Generation 12 Energy Capacity 265 Matter Stores 300 Matter Capacity 300 Sight Range 18 Terrain Scan Density 10 Evasion (%) 40 Item Schematics ----------------- None Robot Schematics ------------------ None Fabricated ------------ Nothing Alien Tech Used ----------------- None Achievements -------------- None Challenges ------------ None Game ------ Seed SingularityMachineBroadsword Manual? 0 Play Time 00:09:26 Cumulative 33.7 hours Start 2021.05.22 @ 21:24:07 End 2021.05.22 @ 21:31:40 Sessions 1 Manual Loads 0 Difficulty Rogue Special Mode None Game No. 19 Rogue 19 Adventurer 0 Explorer 0 Win Type - Total 0 Types 0/0/0/0/0/0/0/0/0 Lore% 31 Gallery% 40 Achievement% 39 Wizard Run 0 Options --------- ASCII 0 Keyboard 1 Movement Numpad Keybinds 0 Fullscreen 1 Font 18/SmallcapsGlow Map View 76x50 Tactical HUD 1 Map Filters NONE Filters NONE Steam 1 RUN: 68a460a0-2072-4c22-a18b-f49ad3e94158